Workbook

Sheet Kotisivu
A1: Vaihtoehtoisten liikkumismuotojen laskuri KULKURI
A2: Versio 1.1
A3: Tervetuloa KULKURIin, vaihtoehtoisten liikkumismuotojen laskuriin. Laskuri on tarkoitettu auton omistamiselle vaihtoehtoisten liikkumistapojen ja -palveluiden vuotuisten kustannusten ja elinkaaripäästöjen laskemiseen.
A4: Laskuri on kehitetty CANEMURE LIFE IP -projektissa.
A6: Huom: Jos laskuri ei toimi suoraan latauksen jälkeen, siirrä tiedosto latauskansiosta muuhun kansioon.
A8: Kehittäjä: | B8: Jáchym Judl | C8: jachym.judl@syke.fi
A9: Viimeisin päivitys: | B9: 2020-12-15
A11: Määritä liikkumistarpeesi välilehdissä "Auto", "Julkinen liikenne" ja "Aktiivinen liikenne". Napsauttamalla alla olevia hyperlinkkejä, sinut ohjataan sinne, missä tietojasi tarvitaan.
A12: Näin korostetut solut edellyttävät tiedon syöttöä. Täytä omat parametriarvot tai valitse vaihtoehto pudotusvalikosta.
A13: Näin korostetut solut sisältävät oletusparametreja. Tarvittaessa käyttäjä voi muokata niitä.
A15: Liikkumistapa | B15: Vuotuiset kustannukset | C15: Vuotuiset päästöt
A16: Autonvuokraus | B16: =Auto!C4 -> 0 | C16: =Auto!C5 -> 0 | D16: kg CO2e
A17: Car rental (peer-to-peer) | B17: =Auto!#REF! ->  | C17: =Auto!#REF! ->  | D17: kg CO2e
A18: Auton jakaminen | B18: =Auto!Q4 -> 0 | C18: =Auto!Q5 -> 0 | D18: kg CO2e
A19: Taksi | B19: =Auto!Z4 -> 0 | C19: =Auto!Z5 -> 0 | D19: kg CO2e
A20: Kaupunkiseudun julkinen liikenne | B20: ='Julkinen liikenne'!C4 -> 0 | C20: ='Julkinen liikenne'!C5 -> 0 | D20: kg CO2e
A21: Kaukoliikenne | B21: ='Julkinen liikenne'!C9 -> 0 | C21: ='Julkinen liikenne'!C10 -> 0 | D21: kg CO2e
A22: Polkupyörä | B22: ='Aktiivinen liikenne'!B10+'Aktiivinen liikenne'!B32 -> 0 | C22: ='Aktiivinen liikenne'!B11+'Aktiivinen liikenne'!B33 -> 0 | D22: kg CO2e
A23: Sähköpyörä | B23: ='Aktiivinen liikenne'!F10*'Aktiivinen liikenne'!F3 -> 0 | C23: ='Aktiivinen liikenne'!F11*'Aktiivinen liikenne'!F3 -> 0 | D23: kg CO2e
A24: (Sähkö) laatikkopyörä | B24: ='Aktiivinen liikenne'!J10 -> 0 | C24: ='Aktiivinen liikenne'!J11 -> 0 | D24: kg CO2e
A25: Kaupunkipyörät | B25: ='Aktiivinen liikenne'!O6 -> 0 | C25: ='Aktiivinen liikenne'!O8 -> 0 | D25: kg CO2e
B26: =SUMIF(B16:B25,">0") -> 0 | C26: =ROUND(SUMIF(C16:C25,">0"),0)&" kg CO2e" -> 0 kg CO2e
A27: Kokonaisajo, auto: | D27: =(Auto!C3+Auto!Q3+Auto!Z3)& " km" -> 0 km
A28: Kaupunkialueen julkisella liikenteellä kuljettu matka: | D28: =('Julkinen liikenne'!$C$3)& " km" -> 0 km
A29: Julkisella kaukoliikenteellä kuljettu matka: | D29: =('Julkinen liikenne'!$C$8)& " km" -> 0 km
A30: Pyörällä kuljettu matka: | D30: =ROUND(('Aktiivinen liikenne'!$B$8+'Aktiivinen liikenne'!$B$30+'Aktiivinen liikenne'!$F$8+'Aktiivinen liikenne'!$J$8+'Aktiivinen liikenne'!$O$5),0)& " km" -> 0 km

Sheet Auto
A1: Autonvuokraus | I1: valitse | O1: Auton jakaminen | X1: Taksi | AF1: Van rental (possibly to be added)
A2: Yhteenveto: | G2: Vuokrakulut | I2: Päivävuokraus | J2: 50 | K2: €/vrk | O2: Yhteenveto: | X2: Yhteenveto:
A3: Vuokra-autolla ajettu kokonaismatka vuodessa | C3: =SUMPRODUCT(D9:D28,B9:B28) -> 0 | D3: km | I3: Viikonloppuvuokraus | J3: 100 | K3: €/vkl | O3: Yhetyskäyttöautolla ajettu kokonaismatka vuodessa | Q3: =SUMPRODUCT(O9:O28,P9:P28) -> 0 | R3: km | X3: Taksilla ajettu kokonaismatka vuodessa | Z3: =SUMPRODUCT(X9:X28,Y9:Y28) -> 0 | AA3: km
A4: Autonvuokrauksen kokonaiskustannukset vuodessa | C4: =SUM(J9:J28) -> 0 | D4: € | I4: Viikkovuokraus | J4: 350 | K4: €/vk | O4: Kokonaiskustannukset vuodessa | Q4: =SUM(U9:U28) -> 0 | R4: € | X4: Kokonaiskustannukset vuodessa | Z4: =SUM(AC9:AC28) -> 0 | AA4: €
A5: Kokonaispäästöt vuodessa | C5: =SUM(K9:K28) -> 0 | D5: kg CO2e | O5: Kokonaispäästöt vuodessa | Q5: =SUM(V9:V28) -> 0 | R5: kg CO2e | X5: Kokonaispäästöt vuodessa | Z5: =SUM(AD9:AD28) -> 0 | AA5: kg CO2e
A8: Vuokran pituus | B8: Ajettu matka, per vuokra [km] | C8: Vuokrahinta [€/vuokra] | D8: Vastaavien matkojen määrä vuodessa | E8: Käyttövoima | F8: Lisäkuljettajien määrä | G8: CDW | H8: Muut extra maksut, per vuokra | J8: Kokonaiskustannukset [€] | K8: Päästöt [kg CO2e] | M8: cost of rental [€/rental] - default equation | O8: Vastaavien matkojen määrä vuodessa | P8: Ajettu matka, per vuokra [km] | Q8: Kesto, per vuokra [min] | R8: Palvelun tyyppi | S8: Käyttövoima | T8: Vuokrahinta [€] | U8: Kokonaiskustannukset [€] | V8: Päästöt [kg CO2e] | X8: Vastaavien taksimatkojen määrä vuodessa | Y8: Ajettu matka, per taksimatka [km] | Z8: päivä / yö / viikonloppu | AA8: Käyttövoima | AB8: Taksimatkan kustannukset | AC8: Kokonaiskustannukset [€] | AD8: Päästöt [kg CO2e]
A9: valitse | C9: =IF(A9=TEXT($I$2,),$J$2,IF(A9=TEXT($I$3,),$J$3,IF(A9=TEXT($I$4,),$J$4,))) -> 0 | D9: 1 | E9: bensiini | F9: 0 | J9: =IF(A9=TEXT($I$2,),(D9*(C9+F9*$C$31+IF(G9="YES",$C$32,0)+H9)),IF(A9=TEXT($I$3,),(D9*(C9+F9*$C$31*3+IF(G9="YES",$C$32,0)*3+H9)),IF(A9=TEXT($I$4,),(D9*(C9+F9*$C$31*7+IF(G9="YES",$C$32,0)*7+H9)))))+IF(E9=TEXT($B$65,),($C$35*$C$40*B9)*D9,IF(E9=TEXT($C$65,),($C$36*$C$41*B9)*D9,IF(E9=TEXT($D$65,),($C$37*$C$42*B9)*D9,0))) -> 0 | K9: =IF(E9=TEXT($B$65,),(($D$55+$D$56)*$C$35*B9+$D$57*B9)*D9,IF(E9=TEXT($C$65,),(($D$58+$D$59)*$C$36*B9+$D$60*B9)*D9,IF(E9=TEXT($D$65,),(($D$61+$D$62)*$C$37*B9+$D$63*B9)*D9,0))) -> 0 | M9: =IF(A9=TEXT($I$2,),$J$2,IF(A9=TEXT($I$3,),$J$3,IF(A9=TEXT($I$4,),$J$4,))) -> 0 | R9: Palvelu A | S9: bensiini | T9: =IF(R9=TEXT($R$31,),($R$32+P9*$R$33+Q9*$R$34),IF(R9=TEXT($S$31,),($S$32+P9*$S$33+Q9*$S$34),IF(R9=TEXT($T$31,),($T$32+P9*$T$33+Q9*$T$34)))) -> 0 | U9: =T9*O9 -> 0 | V9: =IF(S9=TEXT($B$65,),(($D$55+$D$56)*$Q$39*P9+$D$57*P9)*O9,IF(S9=TEXT($C$65,),(($D$58+$D$59)*$Q$40*P9+$D$60*P9)*O9,IF(S9=TEXT($D$65,),(($D$61+$D$62)*$Q$41*P9+$D$63*P9)*O9,0))) -> 0 | Z9: viikonloppu | AA9: diesel | AB9: =IF(Z9=TEXT($AA$31,),($AA$32+$AA$33*Y9),(IF(Z9=TEXT($AB$31,),($AB$32+Y9*$AB$33),(IF(Z9=TEXT($AC$31,),($AC$32+Y9*$AC$33),0)))))*IF(X9>0,1,0) -> 0 | AC9: =X9*AB9 -> 0 | AD9: =IF(AA9=$B$65,($D$55+$D$56)*$Z$39*Y9*X9+$D$57*Y9*X9,IF(AA9=$C$65,($D$58+$D$59)*$Z$40*Y9*X9+$D$60*Y9*X9,IF(AA9=$D$65,($D$61+$D$62)*$Z$41*Y9*X9+$D$63*Y9*X9,0))) -> 0
A10: valitse | C10: 0 | D10: 1 | E10: bensiini | F10: 0 | J10: 0 | K10: =IF(E10=TEXT($B$65,),(($D$55+$D$56)*$C$35*B10+$D$57*B10)*D10,IF(E10=TEXT($C$65,),(($D$58+$D$59)*$C$35*B10+$D$60*B10)*D10,IF(E10=TEXT($D$65,),(($D$61+$D$62)*$C$35*B10+$D$63*B10)*D10,0))) -> 0 | M10: 0 | R10: Palvelu A | S10: bensiini | T10: 0 | U10: =T10*O10 -> 0 | V10: 0 | Z10: viikonloppu | AA10: diesel | AB10: 0 | AC10: 0 | AD10: =IF(AA10=$B$65,($D$55+$D$56)*$Z$39*Y10*X10+$D$57*Y10*X10,IF(AA10=$C$65,($D$58+$D$59)*$Z$40*Y10*X10+$D$60*Y10*X10,IF(AA10=$D$65,($D$61+$D$62)*$Z$41*Y10*X10+$D$63*Y10*X10,0))) -> 0
A11: valitse | C11: 0 | D11: 1 | E11: bensiini | F11: 0 | J11: 0 | K11: 0 | M11: 0 | R11: Palvelu A | S11: bensiini | T11: 0 | U11: 0 | V11: 0 | Z11: viikonloppu | AA11: diesel | AB11: 0 | AC11: 0 | AD11: =IF(AA11=$B$65,($D$55+$D$56)*$Z$39*Y11*X11+$D$57*Y11*X11,IF(AA11=$C$65,($D$58+$D$59)*$Z$40*Y11*X11+$D$60*Y11*X11,IF(AA11=$D$65,($D$61+$D$62)*$Z$41*Y11*X11+$D$63*Y11*X11,0))) -> 0
A12: valitse | C12: 0 | D12: 1 | E12: bensiini | F12: 0 | J12: 0 | K12: 0 | M12: 0 | R12: Palvelu A | S12: bensiini | T12: 0 | U12: 0 | V12: 0 | Z12: viikonloppu | AA12: diesel | AB12: 0 | AC12: 0 | AD12: 0
A13: valitse | C13: 0 | D13: 1 | E13: bensiini | F13: 0 | J13: 0 | K13: 0 | M13: 0 | R13: Palvelu A | S13: bensiini | T13: 0 | U13: 0 | V13: 0 | Z13: viikonloppu | AA13: diesel | AB13: 0 | AC13: 0 | AD13: 0
A14: valitse | C14: 0 | D14: 1 | E14: bensiini | F14: 0 | J14: 0 | K14: 0 | M14: 0 | R14: Palvelu A | S14: bensiini | T14: 0 | U14: 0 | V14: 0 | Z14: viikonloppu | AA14: diesel | AB14: 0 | AC14: 0 | AD14: 0
A15: valitse | C15: 0 | D15: 1 | E15: bensiini | F15: 0 | J15: 0 | K15: 0 | M15: 0 | R15: Palvelu A | S15: bensiini | T15: 0 | U15: 0 | V15: 0 | Z15: viikonloppu | AA15: diesel | AB15: 0 | AC15: 0 | AD15: 0
A16: valitse | C16: 0 | D16: 1 | E16: bensiini | F16: 0 | J16: 0 | K16: 0 | M16: =IF(A16=TEXT($I$2,),$J$2,IF(A16=TEXT($I$3,),$J$3,IF(A16=TEXT($I$4,),$J$4,))) -> 0 | R16: Palvelu A | S16: bensiini | T16: 0 | U16: 0 | V16: 0 | Z16: viikonloppu | AA16: diesel | AB16: 0 | AC16: 0 | AD16: 0
A17: valitse | C17: 0 | D17: 1 | E17: bensiini | F17: 0 | J17: 0 | K17: 0 | M17: 0 | R17: Palvelu A | S17: bensiini | T17: 0 | U17: 0 | V17: 0 | Z17: viikonloppu | AA17: diesel | AB17: 0 | AC17: 0 | AD17: 0
A18: valitse | C18: 0 | D18: 1 | E18: bensiini | F18: 0 | J18: 0 | K18: 0 | M18: 0 | R18: Palvelu A | S18: bensiini | T18: 0 | U18: 0 | V18: 0 | Z18: viikonloppu | AA18: diesel | AB18: 0 | AC18: 0 | AD18: 0
A19: valitse | C19: 0 | D19: 1 | E19: bensiini | F19: 0 | J19: 0 | K19: 0 | M19: 0 | R19: Palvelu A | S19: bensiini | T19: 0 | U19: 0 | V19: 0 | Z19: viikonloppu | AA19: diesel | AB19: 0 | AC19: 0 | AD19: 0
A20: valitse | C20: 0 | D20: 1 | E20: bensiini | F20: 0 | J20: 0 | K20: 0 | M20: 0 | R20: Palvelu A | S20: bensiini | T20: 0 | U20: 0 | V20: 0 | Z20: viikonloppu | AA20: diesel | AB20: 0 | AC20: 0 | AD20: 0
A21: valitse | C21: 0 | D21: 1 | E21: bensiini | F21: 0 | J21: 0 | K21: 0 | M21: 0 | R21: Palvelu A | S21: bensiini | T21: 0 | U21: 0 | V21: 0 | Z21: viikonloppu | AA21: diesel | AB21: 0 | AC21: 0 | AD21: 0
A22: valitse | C22: 0 | D22: 1 | E22: bensiini | F22: 0 | J22: 0 | K22: 0 | M22: 0 | R22: Palvelu A | S22: bensiini | T22: 0 | U22: 0 | V22: 0 | Z22: viikonloppu | AA22: diesel | AB22: 0 | AC22: 0 | AD22: 0
A23: valitse | C23: 0 | D23: 1 | E23: bensiini | F23: 0 | J23: 0 | K23: 0 | M23: 0 | R23: Palvelu A | S23: bensiini | T23: 0 | U23: 0 | V23: 0 | Z23: viikonloppu | AA23: diesel | AB23: 0 | AC23: 0 | AD23: 0
A24: valitse | C24: 0 | D24: 1 | E24: bensiini | F24: 0 | J24: 0 | K24: 0 | M24: 0 | R24: Palvelu A | S24: bensiini | T24: 0 | U24: 0 | V24: 0 | Z24: viikonloppu | AA24: diesel | AB24: 0 | AC24: 0 | AD24: 0
A25: valitse | C25: 0 | D25: 1 | E25: bensiini | F25: 0 | J25: 0 | K25: 0 | M25: 0 | R25: Palvelu A | S25: bensiini | T25: 0 | U25: 0 | V25: 0 | Z25: viikonloppu | AA25: diesel | AB25: 0 | AC25: 0 | AD25: 0
A26: valitse | C26: 0 | D26: 1 | E26: bensiini | F26: 0 | J26: 0 | K26: 0 | M26: 0 | R26: Palvelu A | S26: bensiini | T26: 0 | U26: 0 | V26: 0 | Z26: viikonloppu | AA26: diesel | AB26: 0 | AC26: 0 | AD26: 0
A27: valitse | C27: 0 | D27: 1 | E27: bensiini | F27: 0 | J27: 0 | K27: 0 | M27: 0 | R27: Palvelu A | S27: bensiini | T27: 0 | U27: 0 | V27: 0 | Z27: viikonloppu | AA27: diesel | AB27: 0 | AC27: 0 | AD27: 0
A28: valitse | C28: 0 | D28: 1 | E28: bensiini | F28: 0 | J28: 0 | K28: 0 | M28: 0 | R28: Palvelu A | S28: bensiini | T28: 0 | U28: 0 | V28: 0 | Z28: viikonloppu | AA28: diesel | AB28: 0 | AC28: 0 | AD28: 0
A30: Muut valinnaiset vuokrakustannukset
A31: Lisäkuljettaja | B31: €/vrk | C31: 10 | Q31: select | R31: Palvelu A | S31: Palvelu B | T31: Palvelu C | AA31: päivä | AB31: yö | AC31: viikonloppu
A32: CDW-vapautus | B32: €/vrk | C32: 15 | O32: Aloitusmaksu | Q32: € | R32: 0 | S32: 0 | T32: ei käytössä | X32: Aloitusmaksu | Z32: € | AA32: 4 | AB32: 7 | AC32: 7
O33: Hinta, km | Q33: €/km | R33: 0 | S33: 0.15 | X33: Hinta, km | Z33: €/km | AA33: 1 | AB33: 1.1 | AC33: 1.1
A34: Auton parametrit | O34: Hinta, minuutti | Q34: €/min | R34: 0.47 | S34: 0.2 | X34: Hinta, minuutti | Z34: €/min | AA34: ei käytössä
A35: Polttoaineenkulutus (bensiini) | B35: l/km | C35: 0.055
A36: Polttoaineenkulutus (diesel) | B36: l/km | C36: 0.055
A37: Sähkönkulutus | B37: kWh/km | C37: 0.017
O38: Auton parametrit | X38: Auton parametrit
A39: Polttoaineen hinta | O39: Polttoaineenkulutus (bensiini) | P39: l/km | Q39: 0.055 | X39: Polttoaineenkulutus (bensiini) | Y39: l/km | Z39: 0.055
A40: Bensiini | B40: €/l | C40: 1.45 | O40: Polttoaineenkulutus (diesel) | P40: l/km | Q40: 0.055 | X40: Polttoaineenkulutus (diesel) | Y40: l/km | Z40: 0.055
A41: Diesel | B41: €/l | C41: 1.25 | O41: Sähkönkulutus | P41: kWh/km | Q41: 0.17 | X41: Sähkönkulutus | Y41: kWh/km | Z41: 0.17
A42: Sähkö | B42: €/kWh | C42: 0.22
A44: Elinikäinen mittarilukema
A45: Bensiini / dieselauto, keskikokoinen | B45: km | C45: 300000
A46: Keskikokoinen sähköauto (40 kWh akku) | B46: km | C46: 200000
A49: Päästökertoimet (Lähde: Autokalkulaattori.fi) ↓
A50: auton valmistus (Lähde: Autokalkulaattori.fi)
A51: Bensiini / dieselauto, keskikokoinen | B51: t CO2e | C51: 5.36
A52: Keskikokoinen sähköauto (40 kWh akku) | B52: t CO2e | C52: =6.52+40*0.1 -> 10.52
A54: Päästökertoimet (Lähde: Autokalkulaattori.fi)
A55: Bensiini | B55: suorat päästöt | C55: kg CO2-ekv/l | D55: 2.348
B56: polttoainetuotannon päästöt | C56: kg CO2-ekv/l | D56: 0.655
B57: auton tuotannon päästöt | C57: kg CO2-ekv/km | D57: =C51*1000/C45 -> 0.01786666667
A58: Diesel | B58: suorat päästöt | C58: kg CO2-ekv/l | D58: 2.689
B59: polttoainetuotannon päästöt | C59: kg CO2-ekv/l | D59: 0.75
B60: auton tuotannon päästöt | C60: kg CO2-ekv/km | D60: =C51*1000/C45 -> 0.01786666667
A61: Sähkö | B61: suorat päästöt | C61: kg CO2-ekv/kWh | D61: 0.096
B62: polttoainetuotannon päästöt | C62: kg CO2-ekv/kWh | D62: 0.016
B63: auton tuotannon päästöt | C63: kg CO2-ekv/km | D63: =C52*1000/C46 -> 0.0526
A65: Käyttövoima | B65: bensiini | C65: diesel | D65: sähkö

Sheet Julkinen liikenne
A1: Julkinen liikenne
A2: Yhteenveto (kaupunkiseudun julkinen liikenne): | H2: Kuukaudet, joilla on voimassa oleva kaupungin julkisen liikenteen kausilippu kotitaloutta kohti vuodessa
A3: Kaupunkiseudun julkisessa liikenteessä matkustettu kokonaismatka vuodessa | C3: =SUM(F15:F34) -> 0 | D3: km | H3: aikuiset | J3: 0
A4: Kokonaiskustannukset vuodessa, kaupunkiseudun julkinen liikennne | C4: =SUMIF(B15:B34,TEXT(A39,),I15:I34)+SUMIF(B15:B34,TEXT(A41,),I15:I34)+SUMIF(B15:B34,TEXT(A43,),I15:I34)+SUMIF(B15:B34,TEXT(A44,),I15:I34)+J8*J3+J9*J4 -> 0 | D4: € | H4: lapset | J4: 0
A5: Kokonaispäästöt vuodessa | C5: =SUMIF(B15:B34,TEXT(A39,),J15:J34)+SUMIF(B15:B34,TEXT(A41,),J15:J34)+SUMIF(B15:B34,TEXT(A43,),J15:J34)+SUMIF(B15:B34,TEXT(A44,),J15:J34) -> 0 | D5: kg CO2e
H6: Julkisen liikenteen lippujen hinta (kausilippu ja erilaiset kertaliput)
A7: Yhteenveto (kaukoliikenne) | H7: Lipputyyppi
A8: Kaukoliikenteessä matkustettu kokonaismatka vuodessa | C8: =SUM(G15:G34) -> 0 | D8: km | H8: Kausilippu (aikuinen) | I8: €/kk | J8: 55
A9: Kokonaiskustannukset vuodessa, kaukoliikenne | C9: =SUMIF(B15:B34,TEXT(A40,),I15:I34)+SUMIF(B15:B34,TEXT(A42,),I15:I34) -> 0 | D9: € | H9: Kausilippu (lapsi) | I9: €/kk | J9: 27.4
A10: Kokonaispäästöt vuodessa | C10: =SUMIF(B15:B34,TEXT(A40,),J15:J34)+SUMIF(B15:B34,TEXT(A42,),J15:J34) -> 0 | D10: kg CO2e | H10: Kertalippu A | I10: €/lippu | J10: 3
H11: Kertalippu B | I11: €/lippu | J11: 4
H12: Kertalippu C | I12: €/lippu | J12: 6
A14: Vastaavien matkojen määrä vuodessa | B14: Kuljetustapa | C14: Matkan pituus [km] | D14: Lipputyyppi | E14: Kaukoliikenteen lipun hinta | F14: city public transport distance, per defined number of trips [km] | G14: long-distance public transport distance, per defined number of trips [km] | H14: Matkan hinta (jos maksetaan matkaa kohti) [€] | I14: Kokonaiskustannukset (jos maksetaan matkaa kohti) [€] | J14: Päästöt [kg CO2e] | L14: distance per trip | M14: long distance transport ticket price
B15: valitse | C15: =IF(B15=TEXT($A$39,),10,IF(B15=TEXT($A$43,),5,IF(B15=TEXT($A$44,),10,IF(B15=TEXT($A$41,),15,IF(B15=TEXT($A$40,),150,IF(B15=TEXT($A$42,),300,)))))) -> 0 | D15: valitse | E15: =IF(B15=TEXT($A$40,),20,IF(B15=TEXT($A$42,),40,0)) -> 0 | F15: =IF(B15=TEXT($A$39,),A15*C15,IF(B15=TEXT($A$43,),A15*C15,IF(B15=TEXT($A$44,),A15*C15,IF(B15=TEXT($A$41,),A15*C15)))) -> FALSE | G15: =IF(B15=TEXT($A$40,),A15*C15,IF(B15=TEXT($A$42,),A15*C15)) -> FALSE | H15: =IF(D15=TEXT($H$8,),0,IF(D15=TEXT($H$10,),$J$10,(IF(D15=TEXT($H$11,),$J$11,(IF(D15=TEXT($H$12,),$J$12,0))))))+E15 -> 0 | I15: =A15*H15 -> 0 | J15: =(IF(B15=TEXT($A$39,),$B$39,IF(B15=TEXT($A$40,),$B$40,IF(B15=TEXT($A$41,),$B$41,IF(B15=TEXT($A$42,),$B$42,IF(B15=TEXT($A$43,),$B$43,IF(B15=TEXT($A$44,),$B$44,0)))))))/1000*C15*A15 -> 0 | L15: =IF(B15=TEXT($A$39,),10,IF(B15=TEXT($A$43,),5,IF(B15=TEXT($A$44,),10,IF(B15=TEXT($A$41,),15,IF(B15=TEXT($A$40,),150,IF(B15=TEXT($A$42,),300,)))))) -> 0 | M15: =IF(B15=TEXT($A$40,),20,IF(B15=TEXT($A$42,),40,0)) -> 0
B16: valitse | C16: 0 | D16: valitse | E16: 0 | F16: =IF(B16=TEXT($A$39,),A16*C16,IF(B16=TEXT($A$43,),A16*C16,IF(B16=TEXT($A$44,),A16*C16,IF(B16=TEXT($A$41,),A16*C16)))) -> FALSE | G16: =IF(B16=TEXT($A$40,),A16*C16,IF(B16=TEXT($A$42,),A16*C16)) -> FALSE | H16: 0 | I16: =A16*H16 -> 0 | J16: 0 | L16: =IF(B16=TEXT($A$39,),10,IF(B16=TEXT($A$43,),5,IF(B16=TEXT($A$44,),10,IF(B16=TEXT($A$41,),15,IF(B16=TEXT($A$40,),150,IF(B16=TEXT($A$42,),300,)))))) -> 0 | M16: =IF(B16=TEXT($A$40,),20,IF(B16=TEXT($A$42,),40,0)) -> 0
B17: valitse | C17: 0 | D17: valitse | E17: 0 | F17: FALSE | G17: FALSE | H17: 0 | I17: 0 | J17: 0 | L17: 0 | M17: 0
B18: valitse | C18: 0 | D18: valitse | E18: 0 | F18: FALSE | G18: FALSE | H18: 0 | I18: 0 | J18: 0 | L18: 0 | M18: 0
B19: valitse | C19: 0 | D19: valitse | E19: 0 | F19: FALSE | G19: FALSE | H19: 0 | I19: 0 | J19: 0 | L19: 0 | M19: 0
B20: valitse | C20: 0 | D20: valitse | E20: 0 | F20: FALSE | G20: FALSE | H20: 0 | I20: 0 | J20: 0 | L20: 0 | M20: 0
B21: valitse | C21: 0 | D21: valitse | E21: 0 | F21: FALSE | G21: FALSE | H21: 0 | I21: 0 | J21: 0 | L21: 0 | M21: 0
B22: valitse | C22: 0 | D22: valitse | E22: 0 | F22: FALSE | G22: FALSE | H22: 0 | I22: 0 | J22: 0 | L22: 0 | M22: 0
B23: valitse | C23: 0 | D23: valitse | E23: 0 | F23: FALSE | G23: FALSE | H23: 0 | I23: 0 | J23: 0 | L23: 0 | M23: 0
B24: valitse | C24: 0 | D24: valitse | E24: 0 | F24: FALSE | G24: FALSE | H24: 0 | I24: 0 | J24: 0 | L24: 0 | M24: 0
B25: valitse | C25: 0 | D25: valitse | E25: 0 | F25: FALSE | G25: FALSE | H25: 0 | I25: 0 | J25: 0 | L25: 0 | M25: 0
B26: valitse | C26: 0 | D26: valitse | E26: 0 | F26: FALSE | G26: FALSE | H26: 0 | I26: 0 | J26: 0 | L26: 0 | M26: 0
B27: valitse | C27: 0 | D27: valitse | E27: 0 | F27: FALSE | G27: FALSE | H27: 0 | I27: 0 | J27: 0 | L27: 0 | M27: 0
B28: valitse | C28: 0 | D28: valitse | E28: 0 | F28: FALSE | G28: FALSE | H28: 0 | I28: 0 | J28: 0 | L28: 0 | M28: 0
B29: valitse | C29: 0 | D29: valitse | E29: 0 | F29: FALSE | G29: FALSE | H29: 0 | I29: 0 | J29: 0 | L29: 0 | M29: 0
B30: valitse | C30: 0 | D30: valitse | E30: 0 | F30: FALSE | G30: FALSE | H30: 0 | I30: 0 | J30: 0 | L30: 0 | M30: 0
B31: valitse | C31: 0 | D31: valitse | E31: 0 | F31: FALSE | G31: FALSE | H31: 0 | I31: 0 | J31: 0 | L31: 0 | M31: 0
B32: valitse | C32: 0 | D32: valitse | E32: 0 | F32: FALSE | G32: FALSE | H32: 0 | I32: 0 | J32: 0 | L32: 0 | M32: 0
B33: valitse | C33: 0 | D33: valitse | E33: 0 | F33: FALSE | G33: FALSE | H33: 0 | I33: 0 | J33: 0 | L33: 0 | M33: 0
B34: valitse | C34: 0 | D34: valitse | E34: 0 | F34: FALSE | G34: FALSE | H34: 0 | I34: 0 | J34: 0 | L34: 0 | M34: 0
A36: Hidden rows below contain emission factors from Ilmastodieetti.fi ↓
A37: Source: VTT’s LIPASTO database (data from 2016), complemented with estimated emissions from the fuel supply chain (diesel approximately 20%) and fleet production (approximately 1 g per passenger km). (as done in Ilmastodieetti) | I37: http://lipasto.vtt.fi/yksikkopaastot/henkiloliikenne/tieliikenne/linja-autot/bussilinjaautokeskimaarin.htm
A38: valitse | B38: g CO2eq/passenger km
A39: bussi, paikallinen | B39: =53*1.2+1 -> 64.6 | C39: Note: Lipasto gives 41 g CO2eq/hkm pitkän matkan bussille and 53 g CO2eq/hkm kaupunkibussille (average in 2016).
A40: bussi, kaukoliikenne | B40: =41*1.2+1 -> 50.2
A41: juna, paikallinen | B41: 1 | C41: VR and HKL use green electricity, and the calculated emissions factor of green electricity is 0 g CO2eq/kWh. The figure 1 g CO2eq/kWh is derived from the estimated emissions from fleet production. (as done in Ilmastodieetti) According to Lipast (2016) Intercity train's energy consumption is 0,054 kWh/pkm and 0,071 kWh/pkm per Sm5 (FLIRT) commuter train. Multiplying these values with the emission factor of electricity production leads to far lower numbers than the used 1 g CO2e. 6,048 g/pkm for the intercity train and 7,952 g/pkm for the commuter train. For metro the Lipasto reported consumption is 0,18 kWh/pkm (20,16 g CO2e/pkm if average grid mix is considered). For metro the reported consumption is 0,24 kWh/pkm (60,88 g CO2e/pkm if average grid mix is considered).
A42: juna, kaukoliikenne | B42: 1
A43: raitiovaunu | B43: 1
A44: metro | B44: 1

Sheet Aktiivinen liikenne
A1: Polkupyörä (aikuinen) | E1: Sähköpyörä | I1: (Sähköinen) laatikkopyörä | N1: Kaupunkipyörät | R1: E-scooters - may be implemeted, depending on the data availability
A3: Polkupyörien määrä kotitaloutta kohti | B3: 0 | E3: Sähköpolkupyörien määrä kotitaloutta kohti | F3: 0 | I3: Onko laatikkopyörä sähköistetty? | K3: EI | N3: Yhteenveto, kaupunkipyörät
A4: Pyöräilykuukaudet | B4: 0 | C4: kk | E4: Sähköpyöräilykuukaudet | F4: 0 | G4: kk | N4: Matkoja vuodessa | O4: 0 | P4: matkoja
A5: Matkan keskimääräinen pituus | B5: 3.3 | C5: km | E5: Matkan keskimääräinen pituus | F5: 3.3 | G5: km | I5: Käytetty vai uusi? | K5: UUSI | N5: Kaupunkipyörällä ajettujen kilometrien määrä vuodessa | O5: =O4*P49 -> 0 | P5: km
N6: Kokonaiskustannukset vuodessa | O6: =(P11+P12)*IF(O4=0,0,1) -> 0 | P6: €
A7: Yhteenveto, polkupyörä (aikuinen) | E7: Yhteenveto, sähköpyörä | I7: Yhteeveto, laatikkopyörä | N7: Hinta per matka | O7: =O6/O4 ->  | P7: €
A8: Polkupyörällä ajettu kokonaismatka vuodessa | B8: =21*B4*bike_commute_km*2*bike_number -> 0 | C8: km | E8: Sähköpolkupyörällä ajettu kokonaismatka vuodessa | F8: =21*F4*ebike_commute_km*2*ebike_number -> 0 | G8: km | I8: (Sähkö)laatikkopyörällä ajettu kokonaismatka vuodessa | J8: 0 | K8: km | N8: Päästöt vuodessa | O8: =P46*O4*IF(O4=0,0,1) -> 0 | P8: kg CO2e
A9: Kuinka pitkään pidät polkupyöräsi? | B9: 15 | C9: v | E9: Kuinka pitkään pidät sähköpolkupyöräsi? | F9: 15 | G9: v | I9: Kuinka pitkään pidät laatikkopyöräsi? | J9: 15 | K9: v
A10: Kokonaiskustannukset vuodessa | B10: =IF(B4=0,0,B3*((C14-C15)/B9+C16+C17/4+(C18/4)*IF(C20="KYLLÄ",1,0)+C19/B9)) -> 0 | C10: € | E10: Kokonaiskustannukset vuodessa | F10: =IF(F4=0,0,F3*((G14-G15)/F9+G16+G17/4+G19/F9+(G27/F9)*IF(G21="KYLLÄ",1,0)+(G18/4)*IF(G20="KYLLÄ",1,0)+G33*((G25/G29)*(G30/1000)))) -> 0 | G10: € | I10: Kokonaiskustannukset vuodessa | J10: =IF(J8=0,0,(K14-K15)/J9+K16+K18/4+K20/J9+(K19/4)*IF(K21="KYLLÄ",1,0)+(K33*((K25/K29)*(K30/1000)+(K27/J9)*IF(K22="KYLLÄ",1,0))*IF(K3="KYLLÄ",1,0))) -> 0 | K10: €
A11: Päästöt vuodessa | B11: =IF(B3=0,0,B3*(C46*(1-(C15/C14))/B9)) -> 0 | C11: kg CO2e | E11: Päästöt vuodessa | F11: =IF(F4=0,0,F3*(G25/G29/1000*G33*(G41+G42)+G37*(1-(G15/G14))/F9+IF(G21="KYLLÄ",G38*(1-(G15/G14))/F9,0))) -> 0 | G11: kg CO2e | I11: Päästöt vuodessa | J11: =IF(J8=0,0,K25/K29/1000+K37*(1-(K15/K14))/J9*K33*(G41+G42)+IF(K22="KYLLÄ",K38*(1-(K15/K14))/J9,0)) -> 0 | K11: kg CO2e | N11: Kausilippu | O11: € | P11: 35
N12: Lisäkustannukset (jatkoajan kulut) | O12: € | P12: 0
A14: Ostohinta | B14: € | C14: 700 | E14: Ostohinta | F14: € | G14: 2500 | I14: Ostohinta | J14: € | K14: =IF(cargo_bike_electric="YES",IF(cargo_bike_type="two-wheeler",5000,4000),IF(cargo_bike_type="two-wheeler",3000,2000))*IF(cargo_bike_new="USED",0.5,1) -> 2000 | L14: =IF(cargo_bike_electric="YES",IF(cargo_bike_type="two-wheeler",5000,4000),IF(cargo_bike_type="two-wheeler",3000,2000))*IF(cargo_bike_new="USED",0.5,1) -> 2000
A15: Jälleenmyyntiarvo | B15: € | C15: 0 | E15: Jälleenmyyntiarvo | F15: € | G15: 0 | I15: Jälleenmyyntiarvo | J15: € | K15: 0
A16: Vuosittaiset huoltokustannukset (perushuolto) | B16: € | C16: 70 | E16: Vuosittaiset huoltokustannukset (perushuolto) | F16: € | G16: 100 | I16: Vuosittaiset huoltokustannukset (perushuolto) | J16: € | K16: 150
A17: Kesärenkaat (pari) | B17: € | C17: 50 | E17: Kesärenkaat (pari) | F17: € | G17: 50 | I17: Pyörän tyyppi | K17: kaksipyöräinen
A18: Talvirenkaat (pari) | B18: € | C18: 100 | E18: Talvirenkaat (pari) | F18: € | G18: 100 | I18: Kesärenkaat (pari tai kolme) | J18: € | K18: =IF(K17="two-wheeler",50,75) -> 75 | L18: =IF(K17="two-wheeler",50,75) -> 75
A19: Lisätarvikkeet | B19: € | E19: Lisätarvikkeet | F19: € | I19: Talvirenkaat (pari tai kolme) | J19: € | L19: =IF(K17="two-wheeler",100,150) -> 150
A20: Ajatko talvella? | C20: NO | E20: Ajatko talvella? | G20: NO | I20: Lisätarvikkeet | J20: €
E21: Uuden / toisen akun ostaminen sähköpyörän omistajuuden aikana | G21: NO | I21: Ajatko talvella? | K21: NO
I22: Uuden / toisen akun ostaminen sähköpyörän omistajuuden aikana | K22: NO
A24: Polkupyörä (lapsi) | E24: Akun parametrit | I24: Akun parametrit
A25: Polkupyörien määrä kotitaloutta kohti | B25: 0 | E25: Akun kapasiteetti (Wh) | F25: Wh | G25: 400 | I25: Akun kapasiteetti (Wh) | J25: Wh | K25: 400
A26: Pyöräilykuukaudet | B26: 0 | C26: kk | E26: Matka yhdellä latauksella | F26: km | G26: 40 | I26: Matka yhdellä latauksella | J26: km | K26: 40
A27: Matkan keskimääräinen pituus | B27: 3.3 | C27: km | E27: Uuden akun hinta | F27: € | G27: 500 | I27: Uuden akun hinta | J27: € | K27: 500
E28: Akun käyttöikä | F28: latauksia | G28: 300 | I28: Akun käyttöikä | J28: latauksia | K28: 300
A29: Yhteenveto, polkupyörä (lapsi) | E29: Latauksen hyötysuhde | G29: 0.8 | I29: Latauksen hyötysuhde | K29: 0.8
A30: Polkupyörällä ajettu kokonaismatka vuodessa | B30: =21*B26*bike_child_commute_km*2*bike_child_number -> 0 | C30: km | E30: Sähkön hinta | F30: €/kWh | G30: 0.22 | I30: Sähkön hinta | J30: €/kWh | K30: 0.22
A31: Kuinka pitkään pidät polkupyöräsi? | B31: 5 | C31: v
A32: Kokonaiskustannukset vuodessa | B32: =IF(B26=0,0,B25*((C36-C37)/B31+C38+C39/4+(C40/4)*IF(C42="KYLLÄ",1,0)+C41/B31)) -> 0 | C32: € | E32: Lasketut arvot | I32: Lasketut arvot
A33: Päästöt vuodessa | B33: =IF(B26=0,0,B25*(C46*(1-(C37/C36))/B31)) -> 0 | C33: kg CO2e | E33: Latauksien määrä vuodessa | F33: latauksia/vuosi | G33: =F8/G26 -> 0 | I33: Latauksien määrä vuodessa | J33: latauksia/vuosi | K33: =J8/K26 -> 0
E34: Akun käyttöikä | F34: vuotta | G34: =G28/G33 ->  | I34: Akun käyttöikä | J34: vuotta | K34: =K28/K33 -> 
A36: Ostohinta | B36: € | C36: 300 | E36: Päästökerroin, IPCC 2013 (Lähde: Ecoinvent v7) | I36: Päästökerroin, IPCC 2013 (Lähde: Zacke (2016), Ecoinvent v7)
A37: Jälleenmyyntiarvo | B37: € | C37: 100 | E37: sähköpyörä, tuotanto | F37: kg CO2e | G37: 159 | I37: laatikkopyörä, tuotanto | J37: kg CO2e | K37: 450
A38: Vuosittaiset huoltokustannukset (perushuolto) | B38: € | C38: 35 | E38: battery, Li-ion, rechargeable, prismatic, production | F38: kg CO2e | G38: 8.2 | I38: battery, Li-ion, rechargeable, prismatic, production | J38: kg CO2e | K38: 8.2
A39: Kesärenkaat (pari) | B39: € | C39: 50
A40: Talvirenkaat (pari) | B40: € | C40: 100 | E40: Sähkö (Lähde: Autokalkulaattori)
A41: Lisätarvikkeet | B41: € | E41: suorat päästöt | F41: kg CO2-ekv/kWh | G41: 0.096
A42: Ajatko talvella? | C42: NO | E42: tuotannon päästöt | F42: kg CO2-ekv/kWh | G42: 0.016
A45: Päästökerroin, IPCC 2013 (Lähde: Ecoinvent v7) | N45: emission factor, IPPC 2013 (Source: Ecoinvent v7)
B46: kg CO2e | C46: 141.6 | N46: bike sharing, per average ride | O46: kg CO2e | P46: 0.615
N48: Keskimääräisen matkan pituus kaupunginpyörällä. Lähde: City Bike Finland
N49: Matkan pituus, keskimäärin 2019-2020, Helsinki ja Espoo | O49: km | P49: =AVERAGE('Ciry Bike Finland - data'!B17:C17) -> 2.220911607

Sheet Ciry Bike Finland - data (hidden)
A1: City Bikes Finland
A2: Bike sharing in Helsinki and Espoo (combined data)
A3: Average distance of a single bike sharing trip in 2020, in kilometers
A5: Data source: dev.hsl.fi/citybikes/od-trips-2020/od-trips-2020.zip
A6: Data retrieved 13.11.2020
A8: km | B8: 2019 | C8: 2020
A9: March | C9: =2525.5/1000 -> 2.5255
A10: April | B10: =2022/1000 -> 2.022 | C10: =2606.5/1000 -> 2.6065
A11: May | B11: =2083.5/1000 -> 2.0835 | C11: =2598.8/1000 -> 2.5988
A12: June | B12: =2189/1000 -> 2.189 | C12: =2462.1/1000 -> 2.4621
A13: July | B13: =2166.3/1000 -> 2.1663 | C13: =2288.5/1000 -> 2.2885
A14: August | B14: =2099.9/1000 -> 2.0999 | C14: =2333.4/1000 -> 2.3334
A15: September | B15: =1944.5/1000 -> 1.9445 | C15: =2171.2/1000 -> 2.1712
A16: October | B16: =1848.2/1000 -> 1.8482 | C16: =2144.7/1000 -> 2.1447
A17: average trip | B17: =AVERAGE(B10:B16) -> 2.050485714 | C17: =AVERAGE(C9:C16) -> 2.3913375
